fUST/lending_fUST_20260525
["ID","MTS","AMOUNT","RATE_DAILY","PERIOD"]
[422973122,1779696649000,-1187.26,9.315e-05,2]
[422973133,1779696649000,-500.0,9.315e-05,2]
[422973128,1779696649000,-500.0,9.315e-05,2]
[422973127,1779696649000,-500.0,9.315e-05,2]
[422973134,1779696649000,-500.0,9.315e-05,2]
[422973151,1779696649000,-500.0,9.315e-05,2]
[422973136,1779696649000,-500.0,9.315e-05,2]
[422973139,1779696649000,-500.0,9.315e-05,2]
[422973137,1779696649000,-500.0,9.315e-05,2]
[422973138,1779696649000,-500.0,9.315e-05,2]
[422973140,1779696649000,-1278.32,9.315e-05,2]
[422973141,1779696649000,-1329.4552,9.315e-05,2]
[422973147,1779696649000,-500.0,9.315e-05,2]
[422973143,1779696649000,-500.0,9.315e-05,2]
[422973145,1779696649000,-500.0,9.315e-05,2]
[422973148,1779696649000,-500.0,9.315e-05,2]
[422973142,1779696649000,-500.0,9.315e-05,2]
[422973150,1779696649000,-500.0,9.315e-05,2]
[422973119,1779696649000,-1428.97,9.315e-05,2]
[422973135,1779696649000,-508.15,9.315e-05,2]
[422973117,1779696649000,-500.0,9.315e-05,2]
[422973091,1779696649000,-500.0,9.315e-05,2]
[422973113,1779696649000,-1351.55,9.315e-05,2]
[422973094,1779696649000,-500.0,9.315e-05,2]
[422973152,1779696649000,-590.1,9.315e-05,2]
[422973095,1779696649000,-500.0,9.315e-05,2]
[422973096,1779696649000,-786.53,9.315e-05,2]
[422973090,1779696649000,-500.0,9.315e-05,2]
[422973092,1779696649000,-500.0,9.315e-05,2]
[422973093,1779696649000,-500.0,9.315e-05,2]
[422973098,1779696649000,-500.0,9.315e-05,2]
[422973108,1779696649000,-500.0,9.315e-05,2]
[422973109,1779696649000,-890.11,9.315e-05,2]
[422973097,1779696649000,-500.0,9.315e-05,2]
[422973099,1779696649000,-790.22,9.315e-05,2]
[422973100,1779696649000,-500.0,9.315e-05,2]
[422973120,1779696649000,-500.0,9.315e-05,2]
[422973101,1779696649000,-500.0,9.315e-05,2]
[422973106,1779696649000,-500.0,9.315e-05,2]
[422973107,1779696649000,-500.0,9.315e-05,2]
[422973102,1779696649000,-500.0,9.315e-05,2]
[422973103,1779696649000,-500.0,9.315e-05,2]
[422973105,1779696649000,-500.0,9.315e-05,2]
[422973111,1779696649000,-500.0,9.315e-05,2]
[422973121,1779696649000,-500.0,9.315e-05,2]
[422973110,1779696649000,-500.0,9.315e-05,2]
[422973118,1779696649000,-500.0,9.315e-05,2]
[422973115,1779696649000,-1362.27,9.315e-05,2]
[422973112,1779696649000,-500.0,9.315e-05,2]
[422973114,1779696649000,-590.91737223,9.315e-05,2]
[422973116,1779696649000,-500.0,9.315e-05,2]
[422973104,1779696649000,-1280.05,9.315e-05,2]
[422973146,1779696649000,-500.0,9.315e-05,2]
[422973165,1779696649000,-500.0,9.315e-05,2]
[422973153,1779696649000,-832.1,9.315e-05,2]
[422973192,1779696649000,-517.35,9.589e-05,2]
[422973183,1779696649000,-500.0,9.589e-05,2]
[422973186,1779696649000,-500.0,9.589e-05,2]
[422973187,1779696649000,-799.18,9.589e-05,2]
[422973190,1779696649000,-500.0,9.589e-05,2]
[422973189,1779696649000,-500.0,9.589e-05,2]
[422973191,1779696649000,-500.0,9.589e-05,2]
[422973188,1779696649000,-500.0,9.589e-05,2]
[422973194,1779696649000,-500.0,9.589e-05,2]
[422973195,1779696649000,-589.3,9.589e-05,2]
[422973207,1779696649000,-500.0,9.589e-05,2]
[422973205,1779696649000,-331.68,9.589e-05,2]
[422973206,1779696649000,-500.0,9.589e-05,2]
[422973197,1779696649000,-500.0,9.589e-05,2]
[422973196,1779696649000,-500.0,9.589e-05,2]
[422973198,1779696649000,-500.0,9.589e-05,2]
[422973201,1779696649000,-249.95,9.589e-05,2]
[422973203,1779696649000,-500.0,9.589e-05,2]
[422973200,1779696649000,-304.05,9.589e-05,2]
[422973204,1779696649000,-577.15603069,9.589e-05,2]
[422973199,1779696649000,-500.0,9.589e-05,2]
[422973202,1779696649000,-500.0,9.589e-05,2]
[422973209,1779696649000,-500.0,9.589e-05,2]
[422973212,1779696649000,-500.0,9.589e-05,2]
[422973210,1779696649000,-500.0,9.589e-05,2]
[422973211,1779696649000,-500.0,9.589e-05,2]
[422973144,1779696649000,-649.81,9.315e-05,2]
[422973185,1779696649000,-402.44,9.589e-05,2]
[422973184,1779696649000,-500.0,9.589e-05,2]
[422973208,1779696649000,-500.0,9.589e-05,2]
[422973181,1779696649000,-500.0,9.589e-05,2]
[422973149,1779696649000,-763.01,9.315e-05,2]
[422973155,1779696649000,-500.0,9.315e-05,2]
[422973154,1779696649000,-1630.89,9.315e-05,2]
[422973164,1779696649000,-500.0,9.315e-05,2]
[422973161,1779696649000,-616.3,9.315e-05,2]
[422973163,1779696649000,-1716.73,9.315e-05,2]
[422973156,1779696649000,-500.0,9.315e-05,2]
[422973166,1779696649000,-500.0,9.315e-05,2]
[422973157,1779696649000,-500.0,9.315e-05,2]
[422973160,1779696649000,-1027.85,9.315e-05,2]
[422973159,1779696649000,-500.0,9.315e-05,2]
[422973162,1779696649000,-500.0,9.315e-05,2]
[422973167,1779696649000,-500.0,9.315e-05,2]
[422973158,1779696649000,-20250.6,9.315e-05,2]
[422973170,1779696649000,-195.59877946,9.566e-05,7]
[422973182,1779696649000,-500.0,9.589e-05,2]
[422973179,1779696649000,-500.0,9.589e-05,2]
[422973169,1779696649000,-174.4224,9.452e-05,2]
[422973177,1779696649000,-659.26,9.589e-05,2]
[422973178,1779696649000,-593.36,9.589e-05,2]
[422973171,1779696649000,-457.08486329,9.566e-05,2]
[422973173,1779696649000,-158.20172934,9.566e-05,7]
[422973193,1779696649000,-417.6,9.589e-05,2]
[422973175,1779696649000,-500.0,9.589e-05,2]
[422973172,1779696649000,-344.4847413,9.566e-05,7]
[422973180,1779696649000,-238.08,9.589e-05,2]
[422973174,1779696649000,-500.0,9.589e-05,2]
[422973168,1779696649000,-500.0,9.315e-05,2]
[422973176,1779696649000,-500.0,9.589e-05,2]
[422973253,1779696650000,-500.0,9.589e-05,2]
[422973251,1779696650000,-1280.05,9.589e-05,2]
[422973250,1779696650000,-500.0,9.589e-05,2]
[422973249,1779696650000,-500.0,9.589e-05,2]
[422973246,1779696650000,-500.0,9.589e-05,2]
[422973248,1779696650000,-500.0,9.589e-05,2]
[422973245,1779696650000,-500.0,9.589e-05,2]
[422973244,1779696650000,-786.53,9.589e-05,2]
[422973252,1779696650000,-500.0,9.589e-05,2]
[422973247,1779696650000,-790.22,9.589e-05,2]
[422973243,1779696650000,-500.0,9.589e-05,2]
[422973263,1779696650000,-500.0,9.589e-05,2]
[422973255,1779696650000,-500.0,9.589e-05,2]
[422973256,1779696650000,-890.11,9.589e-05,2]
[422973258,1779696650000,-500.0,9.589e-05,2]
[422973260,1779696650000,-1351.55,9.589e-05,2]
[422973257,1779696650000,-500.0,9.589e-05,2]
[422973259,1779696650000,-500.0,9.589e-05,2]
[422973261,1779696650000,-1362.27,9.589e-05,2]
[422973262,1779696650000,-500.0,9.589e-05,2]
[422973264,1779696650000,-500.0,9.589e-05,2]
[422973265,1779696650000,-1428.97,9.589e-05,2]
[422973266,1779696650000,-500.0,9.589e-05,2]
[422973241,1779696650000,-500.0,9.589e-05,2]
[422973254,1779696650000,-500.0,9.589e-05,2]
[422973239,1779696650000,-500.0,9.589e-05,2]
[422973230,1779696650000,-500.0,9.589e-05,2]
[422973236,1779696650000,-1274.18,9.589e-05,2]
[422973272,1779696650000,-2920.79,9.589e-05,2]
[422973219,1779696650000,-507.8,9.589e-05,2]
[422973214,1779696650000,-500.0,9.589e-05,2]
[422973218,1779696650000,-500.0,9.589e-05,2]
[422973216,1779696650000,-657.86,9.589e-05,2]
[422973217,1779696650000,-500.0,9.589e-05,2]
[422973213,1779696650000,-500.0,9.589e-05,2]
[422973215,1779696650000,-500.0,9.589e-05,2]
[422973220,1779696650000,-609.96,9.589e-05,2]
[422973221,1779696650000,-500.0,9.589e-05,2]
[422973222,1779696650000,-500.0,9.589e-05,2]
[422973223,1779696650000,-516.28,9.589e-05,2]
[422973237,1779696650000,-3984.6,9.589e-05,2]
[422973227,1779696650000,-500.0,9.589e-05,2]
[422973226,1779696650000,-500.0,9.589e-05,2]
[422973225,1779696650000,-500.0,9.589e-05,2]
[422973224,1779696650000,-7969.86,9.589e-05,2]
[422973229,1779696650000,-595.79,9.589e-05,2]
[422973242,1779696650000,-500.0,9.589e-05,2]
[422973232,1779696650000,-625.79,9.589e-05,2]
[422973231,1779696650000,-500.0,9.589e-05,2]
[422973234,1779696650000,-500.0,9.589e-05,2]
[422973235,1779696650000,-500.0,9.589e-05,2]
[422973240,1779696650000,-500.0,9.589e-05,2]
[422973233,1779696650000,-500.0,9.589e-05,2]
[422973238,1779696650000,-500.0,9.589e-05,2]
[422973228,1779696650000,-500.0,9.589e-05,2]
[422973271,1779696650000,-988.19,9.589e-05,2]
[422973284,1779696650000,-1278.32,9.589e-05,2]
[422973267,1779696650000,-500.0,9.589e-05,2]
[422973311,1779696650000,-500.0,9.589e-05,2]
[422973305,1779696650000,-616.3,9.589e-05,2]
[422973303,1779696650000,-500.0,9.589e-05,2]
[422973301,1779696650000,-500.0,9.589e-05,2]
[422973304,1779696650000,-1027.85,9.589e-05,2]
[422973309,1779696650000,-500.0,9.589e-05,2]
[422973307,1779696650000,-1716.73,9.589e-05,2]
[422973306,1779696650000,-500.0,9.589e-05,2]
[422973308,1779696650000,-500.0,9.589e-05,2]
[422973302,1779696650000,-20250.6,9.589e-05,2]
[422973312,1779696650000,-188.79,9.863e-05,2]
[422973313,1779696650000,-500.0,9.863e-05,2]
[422973323,1779696650000,-500.0,9.863e-05,2]
[422973315,1779696650000,-659.26,9.863e-05,2]
[422973314,1779696650000,-500.0,9.863e-05,2]
[422973319,1779696650000,-303.0,9.863e-05,2]
[422973321,1779696650000,-501.55,9.863e-05,2]
[422973317,1779696650000,-500.0,9.863e-05,2]
[422973318,1779696650000,-500.0,9.863e-05,2]
[422973320,1779696650000,-500.0,9.863e-05,2]
[422973322,1779696650000,-799.18,9.863e-05,2]
[422973316,1779696650000,-500.0,9.863e-05,2]
[422973268,1779696650000,-1187.26,9.589e-05,2]
[422973324,1779696650000,-210.65,9.863e-05,2]
[422973326,1779696650000,-500.0,9.863e-05,2]
[422973310,1779696650000,-500.0,9.589e-05,2]
[422973299,1779696650000,-500.0,9.589e-05,2]
[422973325,1779696650000,-500.0,9.863e-05,2]
[422973295,1779696650000,-500.0,9.589e-05,2]
[422973300,1779696650000,-500.0,9.589e-05,2]
[422973269,1779696650000,-4253.87,9.589e-05,2]
[422973274,1779696650000,-500.0,9.589e-05,2]
[422973285,1779696650000,-1329.4552,9.589e-05,2]
[422973275,1779696650000,-1037.37,9.589e-05,2]
[422973278,1779696650000,-500.0,9.589e-05,2]
[422973273,1779696650000,-500.0,9.589e-05,2]
[422973281,1779696650000,-500.0,9.589e-05,2]
[422973283,1779696650000,-500.0,9.589e-05,2]
[422973277,1779696650000,-500.0,9.589e-05,2]
[422973279,1779696650000,-500.0,9.589e-05,2]
[422973276,1779696650000,-500.0,9.589e-05,2]
[422973282,1779696650000,-500.0,9.589e-05,2]
[422973270,1779696650000,-500.0,9.589e-05,2]
[422973286,1779696650000,-500.0,9.589e-05,2]
[422973280,1779696650000,-500.0,9.589e-05,2]
[422973290,1779696650000,-500.0,9.589e-05,2]
[422973294,1779696650000,-500.0,9.589e-05,2]
[422973291,1779696650000,-500.0,9.589e-05,2]
[422973289,1779696650000,-500.0,9.589e-05,2]
[422973292,1779696650000,-500.0,9.589e-05,2]
[422973296,1779696650000,-590.1,9.589e-05,2]
[422973287,1779696650000,-500.0,9.589e-05,2]
[422973288,1779696650000,-649.81,9.589e-05,2]
[422973298,1779696650000,-1630.89,9.589e-05,2]
[422973297,1779696650000,-832.1,9.589e-05,2]
[422973293,1779696650000,-763.01,9.589e-05,2]
[422973360,1779696651000,-500.0,9.863e-05,2]
[422973353,1779696651000,-500.0,9.863e-05,2]
[422973356,1779696651000,-500.0,9.863e-05,2]
[422973357,1779696651000,-500.0,9.863e-05,2]
[422973367,1779696651000,-500.0,9.863e-05,2]
[422973358,1779696651000,-625.79,9.863e-05,2]
[422973362,1779696651000,-500.0,9.863e-05,2]
[422973361,1779696651000,-1274.18,9.863e-05,2]
[422973365,1779696651000,-500.0,9.863e-05,2]
[422973354,1779696651000,-500.0,9.863e-05,2]
[422973359,1779696651000,-500.0,9.863e-05,2]
[422973370,1779696651000,-786.53,9.863e-05,2]
[422973366,1779696651000,-500.0,9.863e-05,2]
[422973364,1779696651000,-500.0,9.863e-05,2]
[422973368,1779696651000,-500.0,9.863e-05,2]
[422973371,1779696651000,-500.0,9.863e-05,2]
[422973369,1779696651000,-500.0,9.863e-05,2]
[422973378,1779696651000,-500.0,9.863e-05,2]
[422973380,1779696651000,-500.0,9.863e-05,2]
[422973373,1779696651000,-790.22,9.863e-05,2]
[422973379,1779696651000,-500.0,9.863e-05,2]
[422973352,1779696651000,-500.0,9.863e-05,2]
[422973363,1779696651000,-3984.6,9.863e-05,2]
[422973355,1779696651000,-595.79,9.863e-05,2]
[422973337,1779696651000,-500.0,9.863e-05,2]
[422973351,1779696651000,-500.0,9.863e-05,2]
[422973374,1779696651000,-500.0,9.863e-05,2]
[422973335,1779696651000,-500.0,9.863e-05,2]
[422973336,1779696651000,-500.0,9.863e-05,2]
[422973331,1779696651000,-500.0,9.863e-05,2]
[422973329,1779696651000,-500.0,9.863e-05,2]
[422973328,1779696651000,-500.0,9.863e-05,2]
[422973327,1779696651000,-500.0,9.863e-05,2]
[422973332,1779696651000,-500.0,9.863e-05,2]
[422973333,1779696651000,-500.0,9.863e-05,2]
[422973334,1779696651000,-500.0,9.863e-05,2]
[422973350,1779696651000,-7969.86,9.863e-05,2]
[422973330,1779696651000,-523.36,9.863e-05,2]
[422973348,1779696651000,-500.0,9.863e-05,2]
[422973349,1779696651000,-516.28,9.863e-05,2]
[422973340,1779696651000,-500.0,9.863e-05,2]
[422973339,1779696651000,-648.05,9.863e-05,2]
[422973342,1779696651000,-657.86,9.863e-05,2]
[422973341,1779696651000,-500.0,9.863e-05,2]
[422973344,1779696651000,-500.0,9.863e-05,2]
[422973343,1779696651000,-500.0,9.863e-05,2]
[422973345,1779696651000,-507.8,9.863e-05,2]
[422973347,1779696651000,-500.0,9.863e-05,2]
[422973338,1779696651000,-500.0,9.863e-05,2]
[422973375,1779696651000,-500.0,9.863e-05,2]
[422973346,1779696651000,-609.96,9.863e-05,2]
[422973377,1779696651000,-1280.05,9.863e-05,2]
[422973408,1779696651000,-500.0,9.863e-05,2]
[422973407,1779696651000,-500.0,9.863e-05,2]
[422973409,1779696651000,-500.0,9.863e-05,2]
[422973428,1779696651000,-20250.6,9.863e-05,2]
[422973410,1779696651000,-1278.32,9.863e-05,2]
[422973412,1779696651000,-254.36392954,9.863e-05,2]
[422973413,1779696651000,-500.0,9.863e-05,2]
[422973411,1779696651000,-1329.4552,9.863e-05,2]
[422973415,1779696651000,-500.0,9.863e-05,2]
[422973416,1779696651000,-500.0,9.863e-05,2]
[422973404,1779696651000,-500.0,9.863e-05,2]
[422973419,1779696651000,-763.01,9.863e-05,2]
[422973420,1779696651000,-500.0,9.863e-05,2]
[422973417,1779696651000,-500.0,9.863e-05,2]
[422973421,1779696651000,-390.86831515,9.863e-05,2]
[422973423,1779696651000,-832.1,9.863e-05,2]
[422973424,1779696651000,-1630.89,9.863e-05,2]
[422973422,1779696651000,-590.1,9.863e-05,2]
[422973426,1779696651000,-500.0,9.863e-05,2]
[422973427,1779696651000,-500.0,9.863e-05,2]
[422973425,1779696651000,-500.0,9.863e-05,2]
[422973372,1779696651000,-500.0,9.863e-05,2]
[422973418,1779696651000,-500.0,9.863e-05,2]
[422973403,1779696651000,-500.0,9.863e-05,2]
[422973414,1779696651000,-649.81,9.863e-05,2]
[422973401,1779696651000,-1037.37,9.863e-05,2]
[422973406,1779696651000,-500.0,9.863e-05,2]
[422973382,1779696651000,-890.11,9.863e-05,2]
[422973392,1779696651000,-500.0,9.863e-05,2]
[422973393,1779696651000,-500.0,9.863e-05,2]
[422973394,1779696651000,-1187.26,9.863e-05,2]
[422973383,1779696651000,-500.0,9.863e-05,2]
[422973381,1779696651000,-548.99995317,9.863e-05,2]
[422973384,1779696651000,-500.0,9.863e-05,2]
[422973385,1779696651000,-500.0,9.863e-05,2]
[422973389,1779696651000,-500.0,9.863e-05,2]
[422973390,1779696651000,-500.0,9.863e-05,2]
[422973391,1779696651000,-1428.97,9.863e-05,2]
[422973376,1779696651000,-500.0,9.863e-05,2]
[422973386,1779696651000,-1351.55,9.863e-05,2]
[422973388,1779696651000,-635.2681275,9.863e-05,2]
[422973395,1779696651000,-4253.87,9.863e-05,2]
[422973397,1779696651000,-988.19,9.863e-05,2]
[422973399,1779696651000,-500.0,9.863e-05,2]
[422973398,1779696651000,-2920.79,9.863e-05,2]
[422973396,1779696651000,-500.0,9.863e-05,2]
[422973400,1779696651000,-500.0,9.863e-05,2]
[422973402,1779696651000,-500.0,9.863e-05,2]
[422973405,1779696651000,-500.0,9.863e-05,2]
[422973387,1779696651000,-1362.27,9.863e-05,2]
[422973452,1779696652000,-151.0,0.0001,2]
[422973472,1779696652000,-500.0,0.00010136,2]
[422973462,1779696652000,-300.0,0.00010136,2]
[422973470,1779696652000,-500.0,0.00010136,2]
[422973464,1779696652000,-500.0,0.00010136,2]
[422973454,1779696652000,-151.0,0.0001,2]
[422973455,1779696652000,-151.0,0.0001,2]
[422973457,1779696652000,-152.8676172,0.0001,2]
[422973456,1779696652000,-151.0,0.0001,2]
[422973469,1779696652000,-500.0,0.00010136,2]
[422973461,1779696652000,-659.26,0.00010136,2]
[422973468,1779696652000,-500.0,0.00010136,2]
[422973473,1779696652000,-500.0,0.00010136,2]
[422973466,1779696652000,-799.18,0.00010136,2]
[422973463,1779696652000,-500.0,0.00010136,2]
[422973465,1779696652000,-500.0,0.00010136,2]
[422973471,1779696652000,-500.0,0.00010136,2]
[422973476,1779696652000,-326.62,0.00010136,2]
[422973475,1779696652000,-500.0,0.00010136,2]
[422973481,1779696652000,-507.8,0.00010136,2]
[422973480,1779696652000,-500.0,0.00010136,2]
[422973484,1779696652000,-500.0,0.00010136,2]
[422973483,1779696652000,-500.0,0.00010136,2]
[422973467,1779696652000,-500.0,0.00010136,2]
[422973453,1779696652000,-151.0,0.0001,2]
[422973429,1779696652000,-500.0,9.863e-05,2]
[422973460,1779696652000,-500.0,0.00010136,2]
[422973474,1779696652000,-500.0,0.00010136,2]
[422973430,1779696652000,-1027.85,9.863e-05,2]
[422973432,1779696652000,-500.0,9.863e-05,2]
[422973431,1779696652000,-616.3,9.863e-05,2]
[422973434,1779696652000,-500.0,9.863e-05,2]
[422973433,1779696652000,-1716.73,9.863e-05,2]
[422973435,1779696652000,-500.0,9.863e-05,2]
[422973436,1779696652000,-500.0,9.863e-05,2]
[422973446,1779696652000,-151.0,0.0001,2]
[422973437,1779696652000,-500.0,9.863e-05,2]
[422973448,1779696652000,-151.0,0.0001,2]
[422973451,1779696652000,-151.0,0.0001,2]
[422973447,1779696652000,-151.0,0.0001,2]
[422973438,1779696652000,-151.0,0.0001,2]
[422973445,1779696652000,-151.0,0.0001,2]
[422973441,1779696652000,-151.0,0.0001,2]
[422973443,1779696652000,-151.0,0.0001,2]
[422973444,1779696652000,-151.0,0.0001,2]
[422973440,1779696652000,-151.0,0.0001,2]
[422973442,1779696652000,-151.0,0.0001,2]
[422973450,1779696652000,-151.0,0.0001,2]
[422973458,1779696652000,-177.0,0.00010122,2]
[422973459,1779696652000,-500.0,0.00010136,2]
[422973449,1779696652000,-151.0,0.0001,2]
[422973439,1779696652000,-151.0,0.0001,2]
[422973477,1779696652000,-500.0,0.00010136,2]
[422973482,1779696652000,-609.96,0.00010136,2]
[422973478,1779696652000,-153.93,0.00010136,2]
[422973514,1779696652000,-394.09,0.00010136,2]
[422973515,1779696652000,-890.11,0.00010136,2]
[422973521,1779696652000,-500.0,0.00010136,2]
[422973523,1779696652000,-1428.97,0.00010136,2]
[422973512,1779696652000,-500.0,0.00010136,2]
[422973517,1779696652000,-500.0,0.00010136,2]
[422973516,1779696652000,-500.0,0.00010136,2]
[422973522,1779696652000,-500.0,0.00010136,2]
[422973518,1779696652000,-500.0,0.00010136,2]
[422973520,1779696652000,-1362.27,0.00010136,2]
[422973519,1779696652000,-1351.55,0.00010136,2]
[422973525,1779696652000,-500.0,0.00010136,2]
[422973524,1779696652000,-500.0,0.00010136,2]
[422973527,1779696652000,-4253.87,0.00010136,2]
[422973535,1779696652000,-500.0,0.00010136,2]
[422973526,1779696652000,-1187.26,0.00010136,2]
[422973533,1779696652000,-500.0,0.00010136,2]
[422973530,1779696652000,-2920.79,0.00010136,2]
[422973532,1779696652000,-1037.37,0.00010136,2]
[422973528,1779696652000,-500.0,0.00010136,2]
[422973531,1779696652000,-500.0,0.00010136,2]
[422973529,1779696652000,-988.19,0.00010136,2]
[422973534,1779696652000,-500.0,0.00010136,2]
[422973537,1779696652000,-500.0,0.00010136,2]
[422973479,1779696652000,-657.86,0.00010136,2]
[422973513,1779696652000,-500.0,0.00010136,2]
[422973511,1779696652000,-1280.05,0.00010136,2]
[422973536,1779696652000,-500.0,0.00010136,2]
[422973508,1779696652000,-500.0,0.00010136,2]
[422973485,1779696652000,-516.28,0.00010136,2]
[422973503,1779696652000,-500.0,0.00010136,2]
[422973491,1779696652000,-500.0,0.00010136,2]
[422973490,1779696652000,-500.0,0.00010136,2]
[422973487,1779696652000,-500.0,0.00010136,2]
[422973488,1779696652000,-500.0,0.00010136,2]
[422973486,1779696652000,-7969.86,0.00010136,2]
[422973496,1779696652000,-500.0,0.00010136,2]
[422973497,1779696652000,-3984.6,0.00010136,2]
[422973492,1779696652000,-625.79,0.00010136,2]
[422973493,1779696652000,-500.0,0.00010136,2]
[422973494,1779696652000,-500.0,0.00010136,2]
[422973489,1779696652000,-595.79,0.00010136,2]
[422973495,1779696652000,-1274.18,0.00010136,2]
[422973499,1779696652000,-500.0,0.00010136,2]
[422973509,1779696652000,-500.0,0.00010136,2]
[422973501,1779696652000,-500.0,0.00010136,2]
[422973500,1779696652000,-500.0,0.00010136,2]
[422973506,1779696652000,-500.0,0.00010136,2]
[422973510,1779696652000,-500.0,0.00010136,2]
[422973498,1779696652000,-500.0,0.00010136,2]
[422973502,1779696652000,-500.0,0.00010136,2]
[422973507,1779696652000,-790.22,0.00010136,2]
[422973505,1779696652000,-500.0,0.00010136,2]
[422973504,1779696652000,-786.53,0.00010136,2]
[422973578,1779696653000,-799.18,0.0001041,2]
[422973579,1779696653000,-597.2,0.0001041,2]
[422973583,1779696653000,-179.48,0.0001041,2]
[422973581,1779696653000,-249.44,0.0001041,2]
[422973580,1779696653000,-500.0,0.0001041,2]
[422973576,1779696653000,-500.0,0.0001041,2]
[422973572,1779696653000,-500.0,0.0001041,2]
[422973573,1779696653000,-222.8,0.0001041,2]
[422973574,1779696653000,-659.26,0.0001041,2]
[422973569,1779696653000,-500.0,0.0001039,2]
[422973575,1779696653000,-500.0,0.0001041,2]
[422973577,1779696653000,-500.0,0.0001041,2]
[422973571,1779696653000,-559.81884586,0.0001039,2]
[422973585,1779696653000,-500.0,0.0001041,2]
[422973598,1779696653000,-501.51039131,0.0001041,2]
[422973584,1779696653000,-500.0,0.0001041,2]
[422973582,1779696653000,-500.0,0.0001041,2]
[422973586,1779696653000,-500.0,0.0001041,2]
[422973588,1779696653000,-500.0,0.0001041,2]
[422973595,1779696653000,-7969.86,0.0001041,2]
[422973593,1779696653000,-500.0,0.0001041,2]
[422973596,1779696653000,-500.0,0.0001041,2]
[422973594,1779696653000,-516.28,0.0001041,2]
[422973592,1779696653000,-609.96,0.0001041,2]
[422973591,1779696653000,-507.8,0.0001041,2]
[422973599,1779696653000,-625.79,0.0001041,2]
[422973590,1779696653000,-500.0,0.0001041,2]
[422973570,1779696653000,-500.0,0.0001039,2]
[422973587,1779696653000,-500.0,0.0001041,2]
[422973568,1779696653000,-500.0,0.0001039,2]
[422973539,1779696653000,-500.0,0.00010136,2]
[422973566,1779696653000,-500.0,0.0001039,2]
[422973597,1779696653000,-595.79,0.0001041,2]
[422973540,1779696653000,-1278.32,0.00010136,2]
[422973541,1779696653000,-1329.4552,0.00010136,2]
[422973538,1779696653000,-500.0,0.00010136,2]
[422973543,1779696653000,-649.81,0.00010136,2]
[422973544,1779696653000,-500.0,0.00010136,2]
[422973546,1779696653000,-500.0,0.00010136,2]
[422973542,1779696653000,-500.0,0.00010136,2]
[422973545,1779696653000,-500.0,0.00010136,2]
[422973549,1779696653000,-500.0,0.00010136,2]
[422973548,1779696653000,-763.01,0.00010136,2]
[422973547,1779696653000,-500.0,0.00010136,2]
[422973551,1779696653000,-832.1,0.00010136,2]
[422973567,1779696653000,-500.0,0.0001039,2]
[422973561,1779696653000,-1716.73,0.00010136,2]
[422973562,1779696653000,-500.0,0.00010136,2]
[422973557,1779696653000,-236.35286451,0.00010136,2]
[422973553,1779696653000,-500.0,0.00010136,2]
[422973556,1779696653000,-20250.6,0.00010136,2]
[422973554,1779696653000,-500.0,0.00010136,2]
[422973558,1779696653000,-1027.85,0.00010136,2]
[422973550,1779696653000,-590.1,0.00010136,2]
[422973560,1779696653000,-500.0,0.00010136,2]
[422973552,1779696653000,-1630.89,0.00010136,2]
[422973559,1779696653000,-616.3,0.00010136,2]
[422973564,1779696653000,-500.0,0.00010136,2]
[422973565,1779696653000,-500.0,0.00010137,2]
[422973563,1779696653000,-500.0,0.00010136,2]